fUST/lending_fUST_20250604
["ID","MTS","AMOUNT","RATE_DAILY","PERIOD"]
[364244029,1749047458497,-556.74,0.00021917,2]
[364244030,1749047458508,-480.69,0.00021917,2]
[364244031,1749047458518,-808.96,0.00021917,2]
[364244032,1749047458528,-605.75,0.00021917,2]
[364244033,1749047458538,-503.78,0.00021917,2]
[364244034,1749047458548,-520.24,0.00021917,2]
[364244035,1749047458558,-689.93,0.00021917,2]
[364244036,1749047458567,-964.36,0.00021917,2]
[364244037,1749047458577,-2437.35,0.00021917,2]
[364244038,1749047458587,-150.28900968,0.0002192,2]
[364244039,1749047458597,-354.56540062,0.0002192,2]
[364244041,1749047458607,-1599.74728128,0.00021971,2]
[364244043,1749047458617,-500.0,0.00021999,2]
[364244045,1749047458626,-148496.09,0.00022,7]
[364244047,1749047458635,-785.13888864,0.00022,2]
[364244049,1749047458645,-10209.83714791,0.00022,2]
[364244051,1749047458657,-4421.23937849,0.00022003,6]
[364244053,1749047458668,-2227.04483128,0.00022056,2]
[364244055,1749047458677,-2160.74,0.00022191,2]
[364244057,1749047458687,-1722.31,0.00022191,2]
[364244059,1749047458698,-278.61543342,0.00022191,2]
[364244061,1749047458708,-1122.68,0.00022191,2]
[364244063,1749047458718,-753.95,0.00022191,2]
[364244065,1749047458727,-685.07,0.00022191,2]
[364244067,1749047458737,-1430.6,0.00022191,2]
[364244069,1749047458748,-466.45,0.00022191,2]
[364244071,1749047458757,-865.22,0.00022191,2]
[364244073,1749047458766,-12500.0,0.00022191,2]
[364244075,1749047458775,-2165.97,0.00022191,2]
[364244077,1749047458785,-2366.92,0.00022191,2]
[364244079,1749047458795,-556.74,0.00022191,2]
[364244081,1749047458805,-480.69,0.00022191,2]
[364244083,1749047458814,-808.96,0.00022191,2]
[364244085,1749047458824,-605.75,0.00022191,2]
[364244087,1749047458834,-503.78,0.00022191,2]
[364244089,1749047458843,-520.24,0.00022191,2]
[364244091,1749047458853,-689.93,0.00022191,2]
[364244093,1749047458862,-964.36,0.00022191,2]
[364244095,1749047458871,-2437.35,0.00022191,2]
[364244097,1749047458881,-5000.0,0.00022193,2]
[364244099,1749047458891,-4421.23937849,0.00022245,6]
[364244101,1749047458900,-707.0,0.00022314,2]
[364244103,1749047458910,-2225.0,0.00022314,2]
[364244105,1749047458919,-405.0,0.00022314,2]
[364244107,1749047458929,-2000.0,0.00022365,2]
[364244108,1749047458939,-5000.0,0.00022409,2]
[364244110,1749047458949,-2160.74,0.00022465,2]
[364244119,1749047459024,-1722.31,0.00022465,2]
[364244121,1749047459034,-1122.68,0.00022465,2]
[364244123,1749047459044,-753.95,0.00022465,2]
[364244125,1749047459054,-685.07,0.00022465,2]
[364244127,1749047459064,-1430.6,0.00022465,2]
[364244129,1749047459074,-466.45,0.00022465,2]
[364244131,1749047459084,-865.22,0.00022465,2]
[364244133,1749047459093,-2165.97,0.00022465,2]
[364244135,1749047459103,-2366.92,0.00022465,2]
[364244137,1749047459113,-556.74,0.00022465,2]
[364244139,1749047459122,-480.69,0.00022465,2]
[364244141,1749047459132,-808.96,0.00022465,2]
[364244143,1749047459142,-605.75,0.00022465,2]
[364244145,1749047459152,-503.78,0.00022465,2]
[364244147,1749047459161,-520.24,0.00022465,2]
[364244149,1749047459171,-689.93,0.00022465,2]
[364244151,1749047459181,-964.36,0.00022465,2]
[364244153,1749047459191,-2437.35,0.00022465,2]
[364244154,1749047459200,-4421.23937849,0.00022486,7]
[364244155,1749047459209,-4000.0,0.000225,4]
[364244156,1749047459218,-157.20561442,0.0002252,2]
[364244157,1749047459227,-271.778863,0.00022603,2]
[364244158,1749047459237,-62112.2580084,0.000227,2]
[364244159,1749047459246,-683.97,0.00022727,2]
[364244160,1749047459255,-4421.23937849,0.00022728,7]
[364244161,1749047459265,-2160.74201414,0.00022739,2]
[364244162,1749047459274,-1722.39210416,0.00022739,2]
[364244163,1749047459283,-1122.9173913,0.00022739,2]
[364244164,1749047459292,-754.1,0.00022739,2]
[364244165,1749047459302,-685.22194467,0.00022739,2]
[364244166,1749047459312,-1430.70074427,0.00022739,2]
[364244167,1749047459322,-466.67,0.00022739,2]
[364244168,1749047459331,-865.22507906,0.00022739,2]
[364244169,1749047459341,-2166.09727493,0.00022739,2]
[364244170,1749047459350,-2367.06054259,0.00022739,2]
[364244171,1749047459359,-556.86745891,0.00022739,2]
[364244172,1749047459369,-480.74756752,0.00022739,2]
[364244173,1749047459379,-808.99840857,0.00022739,2]
[364244174,1749047459389,-605.97706493,0.00022739,2]
[364244175,1749047459398,-503.85162718,0.00022739,2]
[364244176,1749047459408,-520.35,0.00022739,2]
[364244177,1749047459418,-690.07870204,0.00022739,2]
[364244178,1749047459428,-964.47567084,0.00022739,2]
[364244179,1749047459439,-2437.52528239,0.00022739,2]
[364244180,1749047459449,-1000.0,0.00022913,2]
[364244181,1749047459458,-5000.0,0.00022957,2]
[364244182,1749047459468,-4421.23937849,0.00022969,8]
[364244183,1749047459478,-160.0,0.00023,3]
[364244184,1749047459487,-2473.80280598,0.00023,2]
[364244185,1749047459497,-160.0,0.00023,3]
[364244186,1749047459507,-2200.0,0.00023042,2]
[364244187,1749047459517,-600.0,0.00023136,2]
[364244188,1749047459526,-4421.23937849,0.0002321,8]
[364244189,1749047459535,-215.0738,0.0002323,2]
[364244190,1749047459544,-1600.0,0.0002328,2]
[364244191,1749047459552,-148496.09,0.000233,7]
[364244192,1749047459561,-53214.35,0.000233,2]
[364244193,1749047459569,-860.61,0.000233,7]
[364244194,1749047459578,-2410.0,0.000233,7]
[364244195,1749047459587,-600.0,0.00023377,2]
[364244196,1749047459596,-500.0,0.00023399,2]
[364244197,1749047459605,-1152.0,0.00023446,2]
[364244198,1749047459614,-4421.23937849,0.00023452,9]
[364244199,1749047459624,-6690.60550376,0.000235,2]
[364244200,1749047459633,-160.87273684,0.000235,7]
[364244201,1749047459643,-5000.0,0.00023505,2]
[364244202,1749047459652,-162.72847161,0.00023507,2]
[364244203,1749047459666,-423.74812265,0.00023518,2]
[364244204,1749047459675,-1007.566783,0.00023618,3]
[364244205,1749047459685,-600.0,0.00023618,2]
[364244206,1749047459694,-243.825962,0.00023648,2]
[364244207,1749047459703,-4421.23937849,0.00023693,9]
[364244208,1749047459712,-2000.0,0.000237,2]
[364244209,1749047459721,-800.0,0.00023715,2]
[364244210,1749047459732,-102388.7992732,0.000238,3]
[364244297,1749047461516,-942.08,0.00016438,2]
[364244299,1749047461525,-440.0,0.00016438,2]
[364244301,1749047461535,-440.0,0.00016438,2]
[364244303,1749047461544,-440.0,0.00016438,2]
[364244305,1749047461554,-325.76069857,0.00016438,2]
[364244307,1749047461563,-440.0,0.00016438,2]
[364244309,1749047461572,-440.0,0.00016438,2]
[364244311,1749047461582,-440.0,0.00016438,2]
[364244313,1749047461591,-942.08,0.00016712,2]
[364244315,1749047461601,-404.10560202,0.00016712,2]
[364244317,1749047461610,-440.0,0.00016712,2]
[364244319,1749047461619,-440.0,0.00016712,2]
[364244321,1749047461629,-440.0,0.00016712,2]
[364244323,1749047461639,-440.0,0.00016712,2]
[364244325,1749047461649,-220.0,0.00016712,2]
[364244326,1749047461664,-500.0,0.00016984,2]
[364244328,1749047461674,-500.0,0.00016984,2]
[364244330,1749047461684,-275.18966371,0.00016984,2]
[364244333,1749047461695,-428.56114188,0.00016984,2]
[364244335,1749047461705,-500.0,0.00016984,2]
[364244336,1749047461714,-500.0,0.00016984,2]
[364244338,1749047461724,-500.0,0.00016984,2]
[364244340,1749047461735,-500.0,0.00016984,2]
[364244343,1749047461744,-500.0,0.00016984,2]
[364244344,1749047461753,-500.0,0.00016984,2]
[364244346,1749047461762,-196.66864999,0.00016984,2]
[364244348,1749047461771,-500.0,0.00016984,2]
[364244350,1749047461780,-458.0,0.00016984,2]
[364244352,1749047461789,-500.0,0.00016984,2]
[364244354,1749047461799,-500.0,0.00016984,2]
[364244356,1749047461808,-500.0,0.00016984,2]
[364244358,1749047461819,-500.0,0.00016984,2]
[364244360,1749047461828,-500.0,0.00016984,2]
[364244362,1749047461837,-500.0,0.00016984,2]
[364244364,1749047461847,-500.0,0.00016984,2]
[364244366,1749047461856,-500.0,0.00016984,2]
[364244368,1749047461865,-500.0,0.00016984,2]
[364244370,1749047461874,-500.0,0.00016984,2]
[364244372,1749047461884,-500.0,0.00016984,2]
[364244374,1749047461894,-220.78009551,0.00016984,2]
[364244376,1749047461903,-500.0,0.00016984,2]
[364244378,1749047461916,-500.0,0.00016984,2]
[364244380,1749047461926,-500.0,0.00016984,2]
[364244381,1749047461935,-500.0,0.00016984,2]
[364244383,1749047461945,-500.0,0.00016984,2]
[364244385,1749047461955,-500.0,0.00016984,2]
[364244387,1749047461965,-319.48377093,0.00016984,2]
[364244389,1749047461975,-500.0,0.00016984,2]
[364244391,1749047461984,-500.0,0.00016984,2]
[364244393,1749047461994,-500.0,0.00016984,2]
[364244395,1749047462003,-500.0,0.00016984,2]
[364244397,1749047462013,-440.0,0.00016986,2]
[364244399,1749047462023,-942.08,0.00016986,2]
[364244401,1749047462033,-324.82727651,0.00016986,2]
[364244403,1749047462042,-440.0,0.00016986,2]
[364244405,1749047462052,-440.0,0.00016986,2]
[364244407,1749047462062,-440.0,0.00016986,2]
[364244409,1749047462073,-440.0,0.0001726,2]
[364244411,1749047462082,-942.08,0.0001726,2]
[364244413,1749047462092,-376.85729672,0.0001726,2]
[364244415,1749047462102,-440.0,0.0001726,2]
[364244417,1749047462112,-400.0,0.0001726,2]
[364244419,1749047462122,-440.0,0.00017534,2]
[364244421,1749047462132,-942.08,0.00017534,2]
[364244423,1749047462142,-440.0,0.00017534,2]
[364244425,1749047462151,-440.0,0.00017808,2]
[364244427,1749047462162,-942.08,0.00017808,2]
[364244429,1749047462172,-440.0,0.00017808,2]
[364244431,1749047462182,-440.0,0.00018082,2]
[364244433,1749047462191,-942.08,0.00018082,2]
[364244435,1749047462201,-440.0,0.00018082,2]
[364244437,1749047462211,-440.0,0.00018356,2]
[364244439,1749047462221,-942.08,0.00018356,2]
[364244441,1749047462230,-440.0,0.0001863,2]
[364244443,1749047462239,-942.08,0.0001863,2]
[364244445,1749047462249,-500.0,0.00018903,2]
[364244447,1749047462259,-500.0,0.00018903,2]
[364244449,1749047462269,-500.0,0.00018903,2]
[364244451,1749047462281,-500.0,0.00018903,2]
[364244453,1749047462291,-500.0,0.00018903,2]
[364244455,1749047462301,-440.0,0.00018904,2]
[364244457,1749047462310,-942.08,0.00018904,2]
[364244459,1749047462320,-440.0,0.00019178,2]
[364244461,1749047462330,-942.08,0.00019178,2]
[364244463,1749047462339,-440.0,0.00019452,2]
[364244465,1749047462349,-825.29,0.00019452,2]
[364244467,1749047462358,-942.08,0.00019452,2]
[364244469,1749047462368,-310.0,0.00019726,2]
[364244471,1749047462377,-825.29,0.00019726,2]
[364244473,1749047462387,-942.08,0.00019726,2]
[364244475,1749047462396,-825.29,0.0002,2]
[364244476,1749047462406,-942.08,0.0002,2]
[364244478,1749047462416,-825.29,0.00020273,2]
[364244480,1749047462425,-942.08,0.00020273,2]
[364244482,1749047462436,-825.29,0.00020547,2]
[364244485,1749047462446,-942.08,0.00020547,2]
[364244487,1749047462456,-500.0,0.00020548,2]
[364244488,1749047462466,-500.0,0.00020548,2]
[364244491,1749047462475,-500.0,0.00020548,2]
[364244492,1749047462485,-500.0,0.00020548,2]
[364244495,1749047462497,-500.0,0.00020548,2]
[364244497,1749047462508,-500.0,0.00020548,2]
[364244499,1749047462517,-500.0,0.00020548,2]
[364244501,1749047462527,-481.96609228,0.00020548,2]
[364244502,1749047462537,-500.0,0.00020548,2]
[364244505,1749047462547,-500.0,0.00020548,2]
[364244506,1749047462556,-500.0,0.00020548,2]
[364244508,1749047462566,-500.0,0.00020548,2]
[364244510,1749047462576,-825.29,0.00020821,2]
[364244512,1749047462586,-942.08,0.00020821,2]
[364244514,1749047462595,-154.2438045,0.0002107,2]
[364244516,1749047462605,-500.0,0.0002107,2]
[364244518,1749047462615,-825.29,0.00021095,2]
[364244520,1749047462625,-942.08,0.00021095,2]
[364244523,1749047462636,-500.0,0.00021097,2]
[364244524,1749047462646,-500.0,0.00021125,2]
[364244527,1749047462658,-500.0,0.00021152,2]
[364244528,1749047462668,-500.0,0.0002118,2]
[364244530,1749047462678,-500.0,0.00021207,2]
[364244532,1749047462688,-500.0,0.00021234,2]
[364244535,1749047462699,-500.0,0.00021262,2]
[364244536,1749047462709,-500.0,0.00021289,2]
[364244539,1749047462719,-500.0,0.00021317,2]
[364244541,1749047462730,-500.0,0.00021344,2]
[364244542,1749047462740,-825.29,0.00021369,2]
[364244545,1749047462751,-942.08,0.00021369,2]
[364244546,1749047462761,-500.0,0.00021371,2]
[364244548,1749047462772,-825.29,0.00021643,2]
[364244550,1749047462782,-942.08,0.00021643,2]
[364244552,1749047462791,-825.29,0.00021917,2]
[364244554,1749047462801,-825.29,0.00022191,2]
[364244556,1749047462810,-825.29,0.00022465,2]
[364244558,1749047462820,-160819.64745187,0.000238,3]
[364244560,1749047462829,-151.0,0.000238,7]
[364244562,1749047462838,-162.72847161,0.00023836,2]
[364244564,1749047462848,-600.0,0.00023859,2]
[364244566,1749047462858,-1000.0,0.000239,2]
[364244568,1749047462867,-4421.23937849,0.00023934,10]
[364244570,1749047462878,-160.0,0.00024,7]
[364244572,1749047462887,-5000.0,0.00024053,2]
[364244574,1749047462896,-157.20561442,0.00024065,2]
[364244576,1749047462907,-683.97,0.00024099,2]
[364244578,1749047462917,-683.97,0.00024099,2]
[364244581,1749047462927,-683.97,0.00024099,2]
[364244583,1749047462936,-683.97,0.00024099,2]
[364244585,1749047462946,-683.9729683,0.00024099,2]
[364244587,1749047462955,-500.0,0.00024099,2]
[364244588,1749047462965,-2000.0,0.000241,2]
[364244590,1749047462974,-2000.0,0.000241,2]
[364244593,1749047462983,-564.95,0.000241,14]
[364244594,1749047462993,-1500.0,0.000241,2]
[364244596,1749047463002,-1500.0,0.000241,2]
[364244598,1749047463012,-1500.0,0.000241,2]
[364244600,1749047463022,-1500.0,0.000241,2]
[364244602,1749047463032,-1500.0,0.000241,2]
[364244604,1749047463041,-1500.0,0.000241,2]
[364244606,1749047463051,-1500.0,0.000241,2]
[364244608,1749047463061,-1500.0,0.000241,2]
[364244610,1749047463071,-1809.58,0.000241,2]
[364244612,1749047463082,-1500.0,0.000241,2]
[364244615,1749047463094,-2000.0,0.000241,2]
[364244617,1749047463105,-160.0,0.000241,7]
[364244618,1749047463116,-151.0,0.000241,2]
[364244620,1749047463126,-600.0,0.000241,2]
[364244622,1749047463137,-446.64,0.00024109,2]
[364244624,1749047463149,-446.64,0.00024109,2]
[364244627,1749047463160,-446.64,0.00024109,2]
[364244629,1749047463171,-446.64,0.00024109,2]
[364244630,1749047463182,-446.64,0.00024109,2]
[364244632,1749047463194,-446.64,0.00024109,2]
[364244634,1749047463205,-446.64,0.00024109,2]
[364244637,1749047463217,-446.64,0.00024109,2]
[364244638,1749047463227,-446.64,0.00024109,2]
[364244640,1749047463237,-446.64,0.00024109,2]
[364244641,1749047463247,-446.64,0.00024109,2]
[364244642,1749047463257,-446.64,0.00024109,2]
[364244643,1749047463266,-446.64,0.00024109,2]
[364244644,1749047463276,-446.64,0.00024109,2]
[364244645,1749047463286,-446.64,0.00024109,2]
[364244646,1749047463296,-446.64,0.00024109,2]
[364244647,1749047463306,-446.64,0.00024109,2]
[364244648,1749047463315,-446.64,0.00024109,2]
[364244650,1749047463325,-446.64,0.00024109,2]
[364244651,1749047463334,-446.64,0.00024109,2]
[364244653,1749047463344,-446.64,0.00024109,2]
[364244655,1749047463354,-446.64,0.00024109,2]
[364244657,1749047463364,-446.64,0.00024109,2]
[364244660,1749047463373,-446.86859404,0.00024109,2]
[364244661,1749047463383,-615.68,0.00024119,4]
[364244663,1749047463393,-175197.31813912,0.00024129,2]
[364244665,1749047463402,-207.0,0.00024131,2]
[364244667,1749047463412,-206.0,0.00024131,2]
[364244669,1749047463421,-206.0,0.00024131,2]
[364244671,1749047463431,-162.72847161,0.00024137,2]
[364244673,1749047463441,-500.0,0.00024146,2]
[364244675,1749047463451,-210.29862687,0.00024147,7]
[364244677,1749047463461,-151.0,0.00024147,7]
[364244679,1749047463471,-151.0,0.00024147,7]
[364244681,1749047463483,-151.0,0.00024147,7]
[364244684,1749047463494,-151.0,0.00024147,7]
[364244685,1749047463504,-151.0,0.00024147,7]
[364244688,1749047463515,-159.915458,0.00024147,7]
[364244690,1749047463525,-151.0,0.00024148,7]
[364244691,1749047463535,-151.0,0.00024148,7]
[364244694,1749047463545,-151.0,0.00024148,7]
[364244696,1749047463555,-151.0,0.00024148,7]
[364244697,1749047463564,-151.0,0.00024148,7]
[364244699,1749047463574,-151.0,0.00024148,7]
[364244701,1749047463584,-151.0,0.00024148,7]
[364244703,1749047463594,-151.0,0.00024148,7]
[364244705,1749047463603,-151.0,0.00024148,7]
[364244707,1749047463613,-151.0,0.00024148,7]
[364244709,1749047463622,-151.0,0.00024148,7]
[364244711,1749047463632,-151.0,0.00024148,7]
[364244713,1749047463641,-151.0,0.00024148,7]
[364244715,1749047463659,-284.483668,0.00024148,7]
[364244717,1749047463679,-151.0,0.00024148,7]
[364244719,1749047463698,-151.0,0.00024148,7]
[364244721,1749047463709,-151.0,0.00024148,7]
[364244723,1749047463719,-151.0,0.00024148,7]
[364244725,1749047463730,-168.133872,0.00024148,7]
[364244727,1749047463739,-168.133872,0.00024148,7]
[364244729,1749047463749,-168.133872,0.00024148,7]
[364244731,1749047463759,-168.133872,0.00024148,7]
[364244733,1749047463769,-168.133872,0.00024148,7]
[364244735,1749047463779,-168.133872,0.00024148,7]
[364244737,1749047463789,-168.133872,0.00024148,7]
[364244739,1749047463799,-168.133872,0.00024148,7]
[364244741,1749047463808,-168.133872,0.00024148,7]
[364244743,1749047463818,-168.133872,0.00024148,7]
[364244745,1749047463828,-168.133872,0.00024148,7]
[364244747,1749047463837,-168.133872,0.00024148,7]
[364244749,1749047463847,-168.133872,0.00024148,7]
[364244751,1749047463857,-168.133872,0.00024148,7]
[364244753,1749047463866,-168.133872,0.00024148,7]
[364244755,1749047463876,-168.133872,0.00024148,7]
[364244757,1749047463886,-168.133872,0.00024148,7]
[364244759,1749047463896,-168.133872,0.00024148,7]
[364244761,1749047463906,-168.133872,0.00024148,7]
[364244763,1749047463917,-168.13388,0.00024148,7]
[364244765,1749047463927,-151.0,0.00024148,7]
[364244767,1749047463937,-151.0,0.00024148,7]
[364244769,1749047463948,-151.0,0.00024148,7]
[364244771,1749047463958,-151.0,0.00024148,7]
[364244773,1749047463967,-151.0,0.00024148,7]
[364244775,1749047463977,-151.0,0.00024148,7]
[364244777,1749047463987,-267.875194,0.00024148,7]
[364244779,1749047463996,-151.0,0.00024148,7]
[364244781,1749047464006,-151.0,0.00024148,7]
[364244783,1749047464015,-151.0,0.00024148,7]
[364244785,1749047464025,-151.0,0.00024148,7]
[364244787,1749047464034,-151.0,0.00024148,7]
[364244789,1749047464044,-151.0,0.00024148,7]
[364244791,1749047464054,-151.0,0.00024148,7]
[364244793,1749047464064,-151.0,0.00024148,7]
[364244805,1749047464180,-151.0,0.00024148,7]
[364244807,1749047464192,-151.0,0.00024148,7]
[364244809,1749047464202,-209.6821173,0.00024148,7]
[364244811,1749047464213,-151.0,0.00024148,7]
[364244813,1749047464223,-151.0,0.00024148,7]
[364244815,1749047464234,-151.0,0.00024148,7]
[364244817,1749047464244,-151.0,0.00024148,7]
[364244819,1749047464254,-151.0,0.00024148,7]
[364244821,1749047464264,-151.0,0.00024148,7]
[364244823,1749047464275,-151.0,0.00024148,7]
[364244825,1749047464285,-151.0,0.00024148,7]
[364244827,1749047464295,-151.0,0.00024156,7]
[364244829,1749047464305,-151.0,0.00024156,7]
[364244831,1749047464316,-151.0,0.00024156,7]
[364244833,1749047464327,-151.0,0.00024156,7]
[364244835,1749047464337,-151.0,0.00024156,7]
[364244837,1749047464347,-151.0,0.00024156,7]
[364244839,1749047464357,-151.0,0.00024156,7]
[364244841,1749047464367,-151.0,0.00024156,7]
[364244843,1749047464377,-151.0,0.00024156,7]
[364244845,1749047464387,-151.0,0.00024156,7]
[364244847,1749047464398,-151.0,0.00024156,7]
[364244849,1749047464409,-151.0,0.00024156,7]
[364244851,1749047464419,-151.0,0.00024156,7]
[364244853,1749047464430,-151.0,0.00024156,7]
[364244855,1749047464440,-160.52445,0.00024156,7]
[364244857,1749047464449,-151.0,0.00024156,7]
[364244859,1749047464459,-151.0,0.00024156,7]
[364244861,1749047464469,-151.0,0.00024156,7]
[364244863,1749047464480,-151.0,0.00024156,7]
[364244865,1749047464489,-151.0,0.00024156,7]
[364244867,1749047464499,-151.0,0.00024156,7]
[364244869,1749047464509,-151.0,0.00024156,7]
[364244871,1749047464519,-151.0,0.00024156,7]
[364244873,1749047464530,-151.0,0.00024156,7]
[364244875,1749047464540,-151.0,0.00024156,7]
[364244877,1749047464549,-151.0,0.00024156,7]
[364244879,1749047464559,-151.0,0.00024156,7]
[364244881,1749047464569,-151.0,0.00024156,7]
[364244883,1749047464579,-151.0,0.00024156,7]
[364244886,1749047464589,-151.0,0.00024156,7]
[364244888,1749047464599,-151.0,0.00024156,7]
[364244889,1749047464609,-270.630112,0.00024156,7]
[364244891,1749047464619,-151.0,0.00024156,7]
[364244894,1749047464629,-213.544918,0.00024156,7]
[364244895,1749047464639,-151.0,0.00024156,7]
[364244898,1749047464649,-151.0,0.00024156,7]
[364244899,1749047464662,-151.0,0.00024156,7]
[364244901,1749047464672,-151.0,0.00024156,7]
[364244903,1749047464682,-151.0,0.00024156,7]
[364244906,1749047464691,-151.0,0.00024156,7]
[364244907,1749047464702,-151.0,0.00024156,7]
[364244909,1749047464712,-151.0,0.00024156,7]
[364244911,1749047464722,-151.0,0.00024156,7]
[364244914,1749047464734,-151.0,0.00024156,7]
[364244916,1749047464745,-151.0,0.00024156,7]
[364244918,1749047464754,-151.0,0.00024156,7]
[364244920,1749047464764,-151.0,0.00024156,7]
[364244922,1749047464773,-151.873997,0.00024156,7]
[364244924,1749047464783,-190.08815,0.00024156,7]
[364244926,1749047464793,-151.0,0.00024156,7]
[364244928,1749047464803,-151.0,0.00024156,7]
[364244930,1749047464813,-234.299654,0.00024156,7]
[364244932,1749047464823,-151.0,0.00024156,7]
[364244934,1749047464834,-151.0,0.00024156,7]
[364244936,1749047464844,-151.0,0.00024156,7]
[364244938,1749047464854,-151.0,0.00024156,7]
[364244940,1749047464863,-151.0,0.00024156,7]
[364244942,1749047464873,-381.709095,0.00024156,7]
[364244944,1749047464882,-185.465816,0.00024156,7]
[364244946,1749047464892,-381.709095,0.00024156,7]
[364244948,1749047464902,-381.709095,0.00024156,7]
[364244950,1749047464914,-381.709095,0.00024156,7]
[364244952,1749047464924,-381.709095,0.00024156,7]
[364244954,1749047464934,-381.709095,0.00024156,7]
[364244956,1749047464943,-381.709095,0.00024156,7]
[364244958,1749047464954,-381.709095,0.00024156,7]
[364244960,1749047464963,-381.709095,0.00024156,7]
[364244962,1749047464973,-381.709095,0.00024156,7]
[364244964,1749047464983,-381.709095,0.00024156,7]
[364244966,1749047464992,-381.709095,0.00024156,7]
[364244968,1749047465003,-381.709095,0.00024156,7]
[364244970,1749047465013,-381.709087,0.00024156,7]
[364244972,1749047465022,-151.0,0.00024156,7]
[364244974,1749047465032,-154.443728,0.00024156,7]
[364244976,1749047465042,-151.0,0.00024156,7]
[364244978,1749047465052,-151.0,0.00024156,7]
[364244980,1749047465062,-151.0,0.00024156,7]
[364244982,1749047465074,-293.220748,0.00024156,7]
[364244984,1749047465083,-151.0,0.00024156,7]
[364244986,1749047465094,-154.059257,0.00024156,7]
[364244988,1749047465105,-151.0,0.00024156,7]
[364244990,1749047465116,-151.0,0.00024156,7]
[364244992,1749047465126,-151.0,0.00024156,7]
[364244994,1749047465137,-151.0,0.00024156,7]
[364244996,1749047465147,-151.0,0.00024156,7]
[364244998,1749047465159,-151.0,0.00024156,7]
[364245000,1749047465170,-151.0,0.00024156,7]
[364245002,1749047465180,-151.0,0.00024156,7]
[364245004,1749047465189,-151.0,0.00024156,7]
[364245006,1749047465199,-151.0,0.00024156,7]
[364245008,1749047465209,-151.0,0.00024156,7]
[364245010,1749047465219,-151.0,0.00024156,7]
[364245012,1749047465230,-151.0,0.00024156,7]
[364245014,1749047465240,-151.0,0.00024156,7]
[364245016,1749047465250,-155.913432,0.00024156,7]
[364245019,1749047465260,-220.554782,0.00024156,7]
[364245021,1749047465270,-247.648019,0.00024156,7]
[364245023,1749047465279,-247.648019,0.00024156,7]
[364245025,1749047465288,-247.648019,0.00024156,7]
[364245027,1749047465298,-247.648019,0.00024156,7]
[364245029,1749047465309,-247.648019,0.00024156,7]
[364245031,1749047465318,-247.648019,0.00024156,7]
[364245033,1749047465328,-247.648019,0.00024156,7]
[364245035,1749047465338,-247.648019,0.00024156,7]
[364245037,1749047465348,-247.648019,0.00024156,7]
[364245039,1749047465357,-247.648019,0.00024156,7]
[364245041,1749047465366,-247.648019,0.00024156,7]
[364245043,1749047465375,-247.648019,0.00024156,7]
[364245045,1749047465385,-247.648019,0.00024156,7]
[364245047,1749047465395,-247.648019,0.00024156,7]
[364245049,1749047465404,-247.648019,0.00024156,7]
[364245051,1749047465417,-247.648019,0.00024156,7]